[Event "Early-Titled-Tuesday-Blitz-October-10-2023"]
[Site "Chess.com"]
[Date "2023.10.10"]
[Round "3"]
[White "Anton_Demchenko"]
[Black "attack2mateU"]
[Result "0-1"]
[WhiteElo "3002"]
[BlackElo "2728"]
[TimeControl "180+1"]
[EndTime "8:28:07 PDT"]
[Termination "attack2mateU won on time"]

1. e4 {[%clk 0:03:00.9]} 1... c5 {[%clk 0:02:58.3]} 2. Nc3 {[%clk 0:02:54.5]}
2... d6 {[%clk 0:02:58.3]} 3. Bb5+ {[%clk 0:02:54.1]} 3... Bd7 {[%clk 0:02:57]}
4. a4 {[%clk 0:02:54]} 4... Nc6 {[%clk 0:02:54.2]} 5. f4 {[%clk 0:02:50.8]} 5...
g6 {[%clk 0:02:53.2]} 6. Nf3 {[%clk 0:02:51.1]} 6... Bg7 {[%clk 0:02:53.9]} 7.
d3 {[%clk 0:02:51.5]} 7... e6 {[%clk 0:02:48.1]} 8. O-O {[%clk 0:02:49.5]} 8...
Nge7 {[%clk 0:02:48.4]} 9. Be3 {[%clk 0:02:26.7]} 9... a6 {[%clk 0:02:35.6]} 10.
Bc4 {[%clk 0:02:22.7]} 10... Nd4 {[%clk 0:02:35.3]} 11. Bxd4 {[%clk 0:02:11.3]}
11... cxd4 {[%clk 0:02:35.4]} 12. Ne2 {[%clk 0:02:12]} 12... d5 {[%clk
0:02:32.4]} 13. Bb3 {[%clk 0:02:06]} 13... Qb6 {[%clk 0:01:42.1]} 14. Kh1 {[%clk
0:01:59.4]} 14... dxe4 {[%clk 0:01:25.3]} 15. dxe4 {[%clk 0:01:58.3]} 15... Bc6
{[%clk 0:01:26]} 16. Ng3 {[%clk 0:01:42.3]} 16... O-O-O {[%clk 0:01:20.9]} 17.
Qd3 {[%clk 0:01:30.7]} 17... h5 {[%clk 0:01:18.5]} 18. h4 {[%clk 0:01:03.8]}
18... Kb8 {[%clk 0:00:57.7]} 19. Ng5 {[%clk 0:01:00.5]} 19... Rhf8 {[%clk
0:00:49.4]} 20. Ne2 {[%clk 0:00:53.3]} 20... Ng8 {[%clk 0:00:45.7]} 21. Ng1
{[%clk 0:00:39.1]} 21... Nf6 {[%clk 0:00:44]} 22. N1h3 {[%clk 0:00:18]} 22...
Ng4 {[%clk 0:00:42]} 23. Nf2 {[%clk 0:00:15]} 23... Ne3 {[%clk 0:00:41.9]} 24.
Rfe1 {[%clk 0:00:15.6]} 24... e5 {[%clk 0:00:40.6]} 25. fxe5 {[%clk 0:00:05.7]}
25... Bxe5 {[%clk 0:00:38.2]} 26. Kg1 {[%clk 0:00:06.4]} 26... Qc7 {[%clk
0:00:36.5]} 27. Re2 {[%clk 0:00:05.8]} 27... Bh2+ {[%clk 0:00:35.8]} 28. Kh1
{[%clk 0:00:05.9]} 28... Bg3 {[%clk 0:00:31.5]} 29. Nf3 {[%clk 0:00:04.5]} 29...
Bxf2 {[%clk 0:00:19.6]} 30. Rxf2 {[%clk 0:00:04.8]} 30... Qg3 {[%clk 0:00:20.3]}
31. Re2 {[%clk 0:00:02.7]} 31... f5 {[%clk 0:00:20.3]} 32. Nxd4 {[%clk 0:00:01]}
32... Qxh4+ {[%clk 0:00:15.5]} 33. Kg1 {[%clk 0:00:01.7]} 33... Ng4 {[%clk
0:00:14.6]} 34. Nf3 {[%clk 0:00:01.3]} 34... Qg3 {[%clk 0:00:12.6]} 35. Qc3
{[%clk 0:00:01.9]} 35... fxe4 {[%clk 0:00:12.4]} 36. Rxe4 {[%clk 0:00:01.2]}
36... Qf2+ {[%clk 0:00:11.4]} 0-1

[Event "Early-Titled-Tuesday-Blitz-October-10-2023"]
[Site "Chess.com"]
[Date "2023.10.10"]
[Round "3"]
[White "rikchessmx"]
[Black "Sergey85Rodchenkov"]
[Result "1/2-1/2"]
[WhiteElo "2291"]
[BlackElo "2495"]
[TimeControl "180+1"]
[EndTime "8:28:07 PDT"]
[Termination "Game drawn by repetition"]

1. e4 {[%clk 0:02:54.8]} 1... c5 {[%clk 0:03:00.2]} 2. Nf3 {[%clk 0:02:54]} 2...
d6 {[%clk 0:03:00.8]} 3. d4 {[%clk 0:02:54.1]} 3... cxd4 {[%clk 0:03:01.7]} 4.
Nxd4 {[%clk 0:02:54.4]} 4... Nf6 {[%clk 0:03:02.4]} 5. Nc3 {[%clk 0:02:54.8]}
5... a6 {[%clk 0:03:02.8]} 6. f4 {[%clk 0:02:55.4]} 6... e5 {[%clk 0:03:01.3]}
7. Nf3 {[%clk 0:02:53.2]} 7... Nbd7 {[%clk 0:03:01.1]} 8. Bd3 {[%clk 0:02:53.8]}
8... Be7 {[%clk 0:02:59.5]} 9. O-O {[%clk 0:02:54.4]} 9... O-O {[%clk
0:02:59.1]} 10. Kh1 {[%clk 0:02:54.7]} 10... b5 {[%clk 0:02:57.1]} 11. a3 {[%clk
0:02:54.3]} 11... Bb7 {[%clk 0:02:57.2]} 12. Qe1 {[%clk 0:02:54.8]} 12... Qc7
{[%clk 0:02:34.3]} 13. fxe5 {[%clk 0:02:54]} 13... dxe5 {[%clk 0:02:35.2]} 14.
Nh4 {[%clk 0:02:52.4]} 14... g6 {[%clk 0:02:19.9]} 15. Bh6 {[%clk 0:02:50.5]}
15... Rfd8 {[%clk 0:02:19.3]} 16. Nf5 {[%clk 0:02:36.7]} 16... gxf5 {[%clk
0:01:30.2]} 17. Qg3+ {[%clk 0:02:35]} 17... Ng4 {[%clk 0:01:30.8]} 18. Rxf5
{[%clk 0:02:34.6]} 18... Nf6 {[%clk 0:01:23]} 19. Raf1 {[%clk 0:02:29.2]} 19...
Kh8 {[%clk 0:01:08.4]} 20. Rxf6 {[%clk 0:02:28.4]} 20... Rg8 {[%clk 0:00:47.4]}
21. Qh4 {[%clk 0:01:15.6]} 21... Nxf6 {[%clk 0:00:30.7]} 22. Bg5 {[%clk
0:01:00.9]} 22... Rg6 {[%clk 0:00:12.6]} 23. Bxf6+ {[%clk 0:00:53.2]} 23... Rxf6
{[%clk 0:00:07.1]} 24. Rxf6 {[%clk 0:00:51.9]} 24... Qd8 {[%clk 0:00:07.7]} 25.
Nd5 {[%clk 0:00:46.6]} 25... Bxf6 {[%clk 0:00:03.7]} 26. Nxf6 {[%clk 0:00:45.9]}
26... Kg7 {[%clk 0:00:03.6]} 27. Qg5+ {[%clk 0:00:45.8]} 27... Kh8 {[%clk
0:00:03.2]} 28. Qxe5 {[%clk 0:00:45.5]} 28... Qb8 {[%clk 0:00:02]} 29. Qh5
{[%clk 0:00:42.6]} 29... Kg7 {[%clk 0:00:02.5]} 30. Qg5+ {[%clk 0:00:42.1]}
30... Kf8 {[%clk 0:00:02.8]} 31. e5 {[%clk 0:00:41.9]} 31... Qd8 {[%clk
0:00:02]} 32. Nxh7+ {[%clk 0:00:41.6]} 32... Ke8 {[%clk 0:00:02.5]} 33. Nf6+
{[%clk 0:00:41.3]} 33... Ke7 {[%clk 0:00:02.5]} 34. h4 {[%clk 0:00:34.4]} 34...
Qh8 {[%clk 0:00:02.7]} 35. Bf5 {[%clk 0:00:31.1]} 35... Kd8 {[%clk 0:00:02.8]}
36. Ng8+ {[%clk 0:00:28.2]} 36... Kc7 {[%clk 0:00:02.3]} 37. Qe7+ {[%clk
0:00:27.3]} 37... Kb6 {[%clk 0:00:02.3]} 38. Qd6+ {[%clk 0:00:27.1]} 38... Ka7
{[%clk 0:00:02.7]} 39. Qc5+ {[%clk 0:00:26]} 39... Kb8 {[%clk 0:00:03.3]} 40.
Qd6+ {[%clk 0:00:26.2]} 40... Ka7 {[%clk 0:00:03.9]} 41. Qc5+ {[%clk 0:00:23.2]}
41... Kb8 {[%clk 0:00:03.9]} 42. Qd6+ {[%clk 0:00:21.6]} 42... Ka7 {[%clk
0:00:04.1]} 1/2-1/2

[Event "Early-Titled-Tuesday-Blitz-October-10-2023"]
[Site "Chess.com"]
[Date "2023.10.10"]
[Round "3"]
[White "Dewarfd"]
[Black "InitiatingASC"]
[Result "0-1"]
[WhiteElo "2061"]
[BlackElo "2333"]
[TimeControl "180+1"]
[EndTime "8:28:09 PDT"]
[Termination "InitiatingASC won on time"]

1. d4 {[%clk 0:02:57]} 1... d5 {[%clk 0:02:58.1]} 2. e3 {[%clk 0:02:57.4]} 2...
c5 {[%clk 0:02:56.1]} 3. dxc5 {[%clk 0:02:57.7]} 3... e6 {[%clk 0:02:56.1]} 4.
Nf3 {[%clk 0:02:57.5]} 4... Bxc5 {[%clk 0:02:56.1]} 5. c4 {[%clk 0:02:58.2]}
5... Nf6 {[%clk 0:02:55.8]} 6. cxd5 {[%clk 0:02:58.2]} 6... exd5 {[%clk
0:02:56.7]} 7. Bb5+ {[%clk 0:02:54.3]} 7... Nc6 {[%clk 0:02:56.3]} 8. O-O {[%clk
0:02:54.1]} 8... O-O {[%clk 0:02:55.7]} 9. a3 {[%clk 0:02:53.2]} 9... Bd6 {[%clk
0:02:56]} 10. b4 {[%clk 0:02:53.1]} 10... Bc7 {[%clk 0:02:56.2]} 11. Bb2 {[%clk
0:02:53.2]} 11... Qd6 {[%clk 0:02:55.9]} 12. Nbd2 {[%clk 0:02:52.2]} 12... Bg4
{[%clk 0:02:55.3]} 13. Be2 {[%clk 0:02:51.8]} 13... Rad8 {[%clk 0:02:51.3]} 14.
h3 {[%clk 0:02:51.4]} 14... Bh5 {[%clk 0:02:48.7]} 15. Rc1 {[%clk 0:02:48.2]}
15... a6 {[%clk 0:02:48.3]} 16. Qc2 {[%clk 0:02:34.5]} 16... Bb8 {[%clk
0:02:43.1]} 17. Qc5 {[%clk 0:02:33]} 17... Qe6 {[%clk 0:02:35]} 18. b5 {[%clk
0:02:19.7]} 18... Ba7 {[%clk 0:02:09.1]} 19. Qc3 {[%clk 0:02:14.5]} 19... d4
{[%clk 0:01:38]} 20. Nxd4 {[%clk 0:01:18.6]} 20... Nxd4 {[%clk 0:01:23.9]} 21.
Bxh5 {[%clk 0:01:14.9]} 21... Nxb5 {[%clk 0:01:19.6]} 22. Qb4 {[%clk 0:00:48]}
22... Nxh5 {[%clk 0:01:14.7]} 23. a4 {[%clk 0:00:43.6]} 23... Nd6 {[%clk
0:01:04.4]} 24. Nf3 {[%clk 0:00:41.7]} 24... b5 {[%clk 0:00:51.4]} 25. Rc6
{[%clk 0:00:39.5]} 25... bxa4 {[%clk 0:00:46.3]} 26. Rxa6 {[%clk 0:00:38.1]}
26... Bb8 {[%clk 0:00:42.7]} 27. Qxa4 {[%clk 0:00:22.3]} 27... Qc4 {[%clk
0:00:39.1]} 28. Qa1 {[%clk 0:00:17.5]} 28... Ne4 {[%clk 0:00:24.4]} 29. Rc1
{[%clk 0:00:14.9]} 29... Qe2 {[%clk 0:00:22.4]} 30. Rf1 {[%clk 0:00:12.7]} 30...
Nd2 {[%clk 0:00:15.6]} 31. Nxd2 {[%clk 0:00:08.8]} 31... Rxd2 {[%clk 0:00:15.4]}
32. Bd4 {[%clk 0:00:05.4]} 32... Ng3 {[%clk 0:00:13]} 0-1

[Event "Early-Titled-Tuesday-Blitz-October-10-2023"]
[Site "Chess.com"]
[Date "2023.10.10"]
[Round "3"]
[White "CheckThis4"]
[Black "artooon"]
[Result "1-0"]
[WhiteElo "2719"]
[BlackElo "2993"]
[TimeControl "180+1"]
[EndTime "8:28:11 PDT"]
[Termination "CheckThis4 won on time"]

1. e4 {[%clk 0:03:00.9]} 1... c5 {[%clk 0:02:59.4]} 2. Nc3 {[%clk 0:02:57.1]}
2... Nc6 {[%clk 0:02:59.7]} 3. Bb5 {[%clk 0:02:56]} 3... Nd4 {[%clk 0:02:59.2]}
4. Bc4 {[%clk 0:02:55.7]} 4... e6 {[%clk 0:02:59.2]} 5. Nge2 {[%clk 0:02:55.5]}
5... Nf6 {[%clk 0:02:58.2]} 6. O-O {[%clk 0:02:53.9]} 6... d5 {[%clk 0:02:57.4]}
7. exd5 {[%clk 0:02:53.2]} 7... exd5 {[%clk 0:02:58]} 8. Nxd5 {[%clk 0:02:52.7]}
8... Nxd5 {[%clk 0:02:51.2]} 9. Nxd4 {[%clk 0:02:52.5]} 9... cxd4 {[%clk
0:02:50.4]} 10. Qh5 {[%clk 0:02:51.2]} 10... Be6 {[%clk 0:02:13.3]} 11. Re1
{[%clk 0:02:50.3]} 11... Be7 {[%clk 0:02:12.5]} 12. Rxe6 {[%clk 0:02:47.8]}
12... g6 {[%clk 0:02:13]} 13. Qe5 {[%clk 0:02:12.9]} 13... Rg8 {[%clk
0:01:49.2]} 14. Rxe7+ {[%clk 0:01:35.1]} 14... Nxe7 {[%clk 0:01:44.5]} 15. d3
{[%clk 0:01:21]} 15... Rc8 {[%clk 0:01:09.2]} 16. Bb5+ {[%clk 0:01:15.1]} 16...
Rc6 {[%clk 0:01:06.9]} 17. Bxc6+ {[%clk 0:01:15]} 17... bxc6 {[%clk 0:01:07.8]}
18. Bg5 {[%clk 0:01:11.9]} 18... h6 {[%clk 0:00:51.8]} 19. Bxe7 {[%clk
0:01:01.1]} 19... Qxe7 {[%clk 0:00:52.7]} 20. Qb8+ {[%clk 0:00:59.8]} 20... Qd8
{[%clk 0:00:53.4]} 21. Re1+ {[%clk 0:00:58.6]} 21... Kd7 {[%clk 0:00:54]} 22.
Qxa7+ {[%clk 0:00:52.6]} 22... Kd6 {[%clk 0:00:48.8]} 23. Qxd4+ {[%clk
0:00:50.6]} 23... Kc7 {[%clk 0:00:49.4]} 24. Qa7+ {[%clk 0:00:49.6]} 24... Kd6
{[%clk 0:00:49.1]} 25. Qxf7 {[%clk 0:00:33.8]} 25... Rf8 {[%clk 0:00:40.3]} 26.
Qxg6+ {[%clk 0:00:24.9]} 26... Kc5 {[%clk 0:00:40.6]} 27. Qxh6 {[%clk 0:00:21]}
27... Kb6 {[%clk 0:00:38.5]} 28. Qe3+ {[%clk 0:00:20.7]} 28... Ka6 {[%clk
0:00:38.7]} 29. g3 {[%clk 0:00:20.6]} 29... Qf6 {[%clk 0:00:37.4]} 30. b3 {[%clk
0:00:19.9]} 30... Qf5 {[%clk 0:00:35]} 31. h4 {[%clk 0:00:19.1]} 31... Qf6
{[%clk 0:00:08.6]} 32. Qc5 {[%clk 0:00:17.3]} 32... Rf7 {[%clk 0:00:07.9]} 33.
a4 {[%clk 0:00:16.7]} 33... Qf3 {[%clk 0:00:07.3]} 34. a5 {[%clk 0:00:15.3]}
34... Rb7 {[%clk 0:00:06.3]} 35. Re6 {[%clk 0:00:13.2]} 35... Rb5 {[%clk
0:00:01.6]} 36. Qxc6+ {[%clk 0:00:12.5]} 36... Kxa5 {[%clk 0:00:01.6]} 37. Qxf3
{[%clk 0:00:12.2]} 1-0

[Event "Early-Titled-Tuesday-Blitz-October-10-2023"]
[Site "Chess.com"]
[Date "2023.10.10"]
[Round "3"]
[White "HanSchut"]
[Black "banane_verte"]
[Result "1-0"]
[WhiteElo "2358"]
[BlackElo "2513"]
[TimeControl "180+1"]
[EndTime "8:28:15 PDT"]
[Termination "HanSchut won on time"]

1. e4 {[%clk 0:03:00.9]} 1... e6 {[%clk 0:02:55.7]} 2. d4 {[%clk 0:03:00.3]}
2... d5 {[%clk 0:02:54.1]} 3. e5 {[%clk 0:03:00.7]} 3... c5 {[%clk 0:02:54.2]}
4. c3 {[%clk 0:03:01.1]} 4... Nc6 {[%clk 0:02:54.8]} 5. Nf3 {[%clk 0:03:00.8]}
5... Bd7 {[%clk 0:02:55.3]} 6. Be2 {[%clk 0:03:00.5]} 6... f6 {[%clk 0:02:55.2]}
7. O-O {[%clk 0:02:55.6]} 7... fxe5 {[%clk 0:02:55.3]} 8. Nxe5 {[%clk
0:02:55.2]} 8... Nxe5 {[%clk 0:02:55.6]} 9. dxe5 {[%clk 0:02:55.9]} 9... Qc7
{[%clk 0:02:55.5]} 10. f4 {[%clk 0:02:51.4]} 10... Ne7 {[%clk 0:02:52.7]} 11.
Kh1 {[%clk 0:02:49.2]} 11... O-O-O {[%clk 0:02:51.5]} 12. b4 {[%clk 0:02:45.7]}
12... Nf5 {[%clk 0:02:47]} 13. a3 {[%clk 0:02:37.2]} 13... Kb8 {[%clk 0:02:39]}
14. Bd3 {[%clk 0:02:14.2]} 14... g6 {[%clk 0:02:29.7]} 15. Bxf5 {[%clk
0:02:13.5]} 15... gxf5 {[%clk 0:02:29.6]} 16. Be3 {[%clk 0:02:11.3]} 16... h5
{[%clk 0:02:12.9]} 17. Nd2 {[%clk 0:02:10.7]} 17... Bb5 {[%clk 0:02:02.2]} 18.
Re1 {[%clk 0:01:56.8]} 18... Be7 {[%clk 0:02:02]} 19. Nb3 {[%clk 0:01:53.4]}
19... Ba4 {[%clk 0:02:01.4]} 20. Qb1 {[%clk 0:01:48.7]} 20... Bxb3 {[%clk
0:01:55.7]} 21. Qxb3 {[%clk 0:01:49.6]} 21... Rdg8 {[%clk 0:01:51]} 22. Rab1
{[%clk 0:01:42.5]} 22... h4 {[%clk 0:01:46.6]} 23. bxc5 {[%clk 0:01:32.9]} 23...
h3 {[%clk 0:01:46.3]} 24. g3 {[%clk 0:01:29.9]} 24... d4 {[%clk 0:01:46.6]} 25.
cxd4 {[%clk 0:01:12.9]} 25... Bxc5 {[%clk 0:01:43.7]} 26. Qxe6 {[%clk
0:01:01.3]} 26... Bxa3 {[%clk 0:01:29.7]} 27. Qb3 {[%clk 0:00:39.5]} 27... Rg7
{[%clk 0:01:14.5]} 28. d5 {[%clk 0:00:36.1]} 28... Qa5 {[%clk 0:01:07.4]} 29. e6
{[%clk 0:00:21.5]} 29... Rd8 {[%clk 0:01:05.4]} 30. Bd4 {[%clk 0:00:17.6]} 30...
Rh7 {[%clk 0:00:58.6]} 31. Be5+ {[%clk 0:00:17.4]} 31... Ka8 {[%clk 0:00:59.3]}
32. Ra1 {[%clk 0:00:10.6]} 32... Qd2 {[%clk 0:00:50.4]} 33. Qa2 {[%clk
0:00:08.3]} 33... Qd3 {[%clk 0:00:30.5]} 34. Rad1 {[%clk 0:00:03]} 34... Qf3+
{[%clk 0:00:29]} 35. Kg1 {[%clk 0:00:03.6]} 35... Bc5+ {[%clk 0:00:29.1]} 36.
Bd4 {[%clk 0:00:02.3]} 36... Bxd4+ {[%clk 0:00:04.2]} 37. Rxd4 {[%clk
0:00:03.2]} 37... Rc7 {[%clk 0:00:01.8]} 38. Qf2 {[%clk 0:00:02.9]} 1-0

[Event "Early-Titled-Tuesday-Blitz-October-10-2023"]
[Site "Chess.com"]
[Date "2023.10.10"]
[Round "3"]
[White "frederiksvane"]
[Black "ArtemDyachuk"]
[Result "1-0"]
[WhiteElo "2889"]
[BlackElo "2663"]
[TimeControl "180+1"]
[EndTime "8:28:16 PDT"]
[Termination "frederiksvane won on time"]

1. c4 {[%clk 0:03:00.9]} 1... e5 {[%clk 0:02:58.9]} 2. g3 {[%clk 0:02:58.9]}
2... c6 {[%clk 0:02:56.2]} 3. d4 {[%clk 0:02:58.4]} 3... exd4 {[%clk 0:02:53.5]}
4. Nf3 {[%clk 0:02:57.1]} 4... Nf6 {[%clk 0:02:51.4]} 5. Nxd4 {[%clk 0:02:57]}
5... d6 {[%clk 0:02:48.4]} 6. Bg2 {[%clk 0:02:57.1]} 6... Be7 {[%clk 0:02:48.6]}
7. O-O {[%clk 0:02:57.8]} 7... O-O {[%clk 0:02:48.8]} 8. Nc3 {[%clk 0:02:58.5]}
8... Nbd7 {[%clk 0:02:47.5]} 9. b3 {[%clk 0:02:57.5]} 9... Ne5 {[%clk
0:02:42.4]} 10. h3 {[%clk 0:02:55.1]} 10... Re8 {[%clk 0:02:36.4]} 11. f4 {[%clk
0:02:50]} 11... Ng6 {[%clk 0:02:35.4]} 12. e4 {[%clk 0:02:49.9]} 12... Bf8
{[%clk 0:02:30.8]} 13. Be3 {[%clk 0:02:49.6]} 13... Bd7 {[%clk 0:02:25.4]} 14.
Qd2 {[%clk 0:02:49]} 14... Qc7 {[%clk 0:02:22.3]} 15. Rad1 {[%clk 0:02:47]}
15... Rad8 {[%clk 0:02:21.8]} 16. Bf2 {[%clk 0:02:42.5]} 16... Bc8 {[%clk
0:02:15.7]} 17. Rfe1 {[%clk 0:02:21.6]} 17... h5 {[%clk 0:02:12.3]} 18. Qc1
{[%clk 0:01:48.7]} 18... Qb8 {[%clk 0:02:00.1]} 19. Nf3 {[%clk 0:01:35]} 19...
a6 {[%clk 0:01:24.6]} 20. Bb6 {[%clk 0:01:24.3]} 20... Rd7 {[%clk 0:01:22.8]}
21. Bd4 {[%clk 0:01:24.9]} 21... Rde7 {[%clk 0:00:54.3]} 22. Bxf6 {[%clk
0:01:08.7]} 22... gxf6 {[%clk 0:00:55.2]} 23. Nd4 {[%clk 0:01:00.7]} 23... Bh6
{[%clk 0:00:40.8]} 24. h4 {[%clk 0:00:56.8]} 24... Bg4 {[%clk 0:00:39]} 25. Nf5
{[%clk 0:00:32]} 25... Bxf5 {[%clk 0:00:36.6]} 26. exf5 {[%clk 0:00:32.1]} 26...
Nf8 {[%clk 0:00:37.5]} 27. Bf3 {[%clk 0:00:25.6]} 27... b5 {[%clk 0:00:20.5]}
28. Rxe7 {[%clk 0:00:16.5]} 28... Rxe7 {[%clk 0:00:20.3]} 29. Qd2 {[%clk
0:00:13.9]} 29... bxc4 {[%clk 0:00:14.5]} 30. bxc4 {[%clk 0:00:14.6]} 30... Qb4
{[%clk 0:00:12.8]} 31. Kg2 {[%clk 0:00:14.8]} 31... Qxc4 {[%clk 0:00:10.9]} 32.
Qxd6 {[%clk 0:00:12.4]} 32... Rd7 {[%clk 0:00:05.8]} 33. Qxc6 {[%clk 0:00:04.2]}
33... Qxc6 {[%clk 0:00:01.8]} 34. Bxc6 {[%clk 0:00:05.1]} 34... Rc7 {[%clk
0:00:02]} 35. Rd6 {[%clk 0:00:05.4]} 35... Kg7 {[%clk 0:00:01.8]} 36. Nd5 {[%clk
0:00:05.9]} 36... Ra7 {[%clk 0:00:01.8]} 37. Nxf6 {[%clk 0:00:05.8]} 37... Rc7
{[%clk 0:00:01.3]} 38. Ne8+ {[%clk 0:00:06.3]} 1-0

[Event "Early-Titled-Tuesday-Blitz-October-10-2023"]
[Site "Chess.com"]
[Date "2023.10.10"]
[Round "3"]
[White "Haykoooo0o"]
[Black "SaqoChess_Twitch"]
[Result "0-1"]
[WhiteElo "2443"]
[BlackElo "2621"]
[TimeControl "180+1"]
[EndTime "8:28:17 PDT"]
[Termination "SaqoChess_Twitch won on time"]

1. Nf3 {[%clk 0:02:55.9]} 1... d5 {[%clk 0:02:59.9]} 2. e3 {[%clk 0:02:52.2]}
2... e6 {[%clk 0:03:00]} 3. c4 {[%clk 0:02:50.3]} 3... c5 {[%clk 0:02:59.9]} 4.
b3 {[%clk 0:02:48.8]} 4... Nc6 {[%clk 0:03:00]} 5. Bb2 {[%clk 0:02:45.3]} 5...
Nf6 {[%clk 0:02:59.9]} 6. Be2 {[%clk 0:02:44.4]} 6... Be7 {[%clk 0:02:59]} 7.
O-O {[%clk 0:02:43.9]} 7... O-O {[%clk 0:02:59.3]} 8. d4 {[%clk 0:02:43.2]} 8...
cxd4 {[%clk 0:02:59.3]} 9. Nxd4 {[%clk 0:02:43]} 9... Nxd4 {[%clk 0:02:55]} 10.
Qxd4 {[%clk 0:02:43.9]} 10... dxc4 {[%clk 0:02:54.4]} 11. Bxc4 {[%clk
0:02:38.1]} 11... Qxd4 {[%clk 0:02:53.7]} 12. Bxd4 {[%clk 0:02:39]} 12... Rd8
{[%clk 0:02:53.8]} 13. Be2 {[%clk 0:02:31.5]} 13... Bd7 {[%clk 0:02:50.8]} 14.
Bf3 {[%clk 0:02:31.8]} 14... Bc6 {[%clk 0:02:46]} 15. Bxc6 {[%clk 0:02:31.7]}
15... bxc6 {[%clk 0:02:46.9]} 16. Rc1 {[%clk 0:02:28.4]} 16... c5 {[%clk
0:02:42.9]} 17. Bb2 {[%clk 0:02:25.3]} 17... a5 {[%clk 0:02:41.2]} 18. Nc3
{[%clk 0:02:10.5]} 18... Rd2 {[%clk 0:02:29.8]} 19. Rab1 {[%clk 0:02:03.6]}
19... Rc8 {[%clk 0:01:39.6]} 20. Na4 {[%clk 0:01:48.8]} 20... Ng4 {[%clk
0:01:19.6]} 21. Rd1 {[%clk 0:01:30.6]} 21... Rc2 {[%clk 0:00:56.4]} 22. Rbc1
{[%clk 0:01:25.5]} 22... Re2 {[%clk 0:00:30.5]} 23. Rd7 {[%clk 0:00:49.2]} 23...
Bh4 {[%clk 0:00:27.1]} 24. g3 {[%clk 0:00:47.3]} 24... Bf6 {[%clk 0:00:24.2]}
25. Bxf6 {[%clk 0:00:40.9]} 25... gxf6 {[%clk 0:00:24.7]} 26. h3 {[%clk
0:00:36.8]} 26... Nxf2 {[%clk 0:00:22.1]} 27. Kf1 {[%clk 0:00:36.4]} 27... Rxa2
{[%clk 0:00:21.9]} 28. Rxc5 {[%clk 0:00:27.4]} 28... Rxc5 {[%clk 0:00:17.8]} 29.
Nxc5 {[%clk 0:00:28.3]} 29... Nxh3 {[%clk 0:00:14.5]} 30. Ne4 {[%clk 0:00:25.1]}
30... Kg7 {[%clk 0:00:13.2]} 31. Nd6 {[%clk 0:00:23.8]} 31... Ng5 {[%clk
0:00:12.3]} 32. Ra7 {[%clk 0:00:21.2]} 32... h5 {[%clk 0:00:11.7]} 33. Nc4
{[%clk 0:00:18.8]} 33... Ne4 {[%clk 0:00:10.4]} 34. Rxa5 {[%clk 0:00:16.8]}
34... Nxg3+ {[%clk 0:00:11.1]} 35. Kg1 {[%clk 0:00:14.1]} 35... Re2 {[%clk
0:00:12]} 36. Ra7 {[%clk 0:00:03.8]} 36... h4 {[%clk 0:00:11.9]} 37. Nd6 {[%clk
0:00:02.9]} 37... h3 {[%clk 0:00:12.4]} 38. Rxf7+ {[%clk 0:00:03]} 38... Kg6
{[%clk 0:00:12.6]} 0-1

[Event "Early-Titled-Tuesday-Blitz-October-10-2023"]
[Site "Chess.com"]
[Date "2023.10.10"]
[Round "3"]
[White "dcremisi"]
[Black "seopie"]
[Result "0-1"]
[WhiteElo "2557"]
[BlackElo "2774"]
[TimeControl "180+1"]
[EndTime "8:28:18 PDT"]
[Termination "seopie won by resignation"]

1. d4 {[%clk 0:03:00.9]} 1... Nf6 {[%clk 0:03:00.2]} 2. c4 {[%clk 0:03:00.9]}
2... e6 {[%clk 0:03:00.1]} 3. Nf3 {[%clk 0:03:00.9]} 3... d5 {[%clk 0:03:00.3]}
4. Nc3 {[%clk 0:03:00.9]} 4... c6 {[%clk 0:03:00.4]} 5. e3 {[%clk 0:03:00.1]}
5... Nbd7 {[%clk 0:03:00.1]} 6. Qc2 {[%clk 0:03:00.1]} 6... a6 {[%clk
0:02:56.7]} 7. Bd3 {[%clk 0:02:58.7]} 7... dxc4 {[%clk 0:02:56.5]} 8. Bxc4
{[%clk 0:02:58]} 8... b5 {[%clk 0:02:57]} 9. Bd3 {[%clk 0:02:58.1]} 9... c5
{[%clk 0:02:57]} 10. a4 {[%clk 0:02:53.1]} 10... b4 {[%clk 0:02:46.7]} 11. Ne4
{[%clk 0:02:50.2]} 11... Bb7 {[%clk 0:02:46.3]} 12. dxc5 {[%clk 0:02:48.4]}
12... Rc8 {[%clk 0:02:41.5]} 13. Nxf6+ {[%clk 0:02:44.5]} 13... Qxf6 {[%clk
0:02:40.5]} 14. Qe2 {[%clk 0:02:41.1]} 14... Nxc5 {[%clk 0:02:38.7]} 15. Bc4
{[%clk 0:02:39.8]} 15... Bd6 {[%clk 0:02:35.4]} 16. O-O {[%clk 0:02:37.8]} 16...
O-O {[%clk 0:02:35.5]} 17. Bd2 {[%clk 0:02:37.6]} 17... a5 {[%clk 0:02:32.5]}
18. b3 {[%clk 0:02:33.1]} 18... Rfd8 {[%clk 0:02:21.2]} 19. Rad1 {[%clk
0:02:30.5]} 19... Qh6 {[%clk 0:02:20.6]} 20. h3 {[%clk 0:02:26.9]} 20... Qg6
{[%clk 0:02:19.2]} 21. Be1 {[%clk 0:02:17]} 21... h6 {[%clk 0:02:11.7]} 22. Rd4
{[%clk 0:02:07.1]} 22... Bb8 {[%clk 0:02:10.8]} 23. Rxd8+ {[%clk 0:02:06.4]}
23... Rxd8 {[%clk 0:02:10.8]} 24. Bd2 {[%clk 0:02:01.3]} 24... Qc2 {[%clk
0:02:08]} 25. Rc1 {[%clk 0:01:57.5]} 25... Qb2 {[%clk 0:02:07.3]} 26. Nd4 {[%clk
0:01:44.2]} 26... e5 {[%clk 0:01:49.9]} 27. Rc2 {[%clk 0:01:12.3]} 27... Qb1+
{[%clk 0:01:48]} 28. Rc1 {[%clk 0:01:12.3]} 28... Qe4 {[%clk 0:01:34.4]} 29. Nf3
{[%clk 0:01:09.2]} 29... Nd3 {[%clk 0:01:11.9]} 30. Rd1 {[%clk 0:00:44.8]} 30...
Nb2 {[%clk 0:01:10]} 31. Rc1 {[%clk 0:00:39.4]} 31... Nxc4 {[%clk 0:01:10]} 32.
bxc4 {[%clk 0:00:34.7]} 32... Qc6 {[%clk 0:01:07.7]} 33. Qd1 {[%clk 0:00:25.9]}
33... Qd7 {[%clk 0:01:05.1]} 34. Rc2 {[%clk 0:00:15]} 34... Qxa4 {[%clk
0:01:02.6]} 35. Qc1 {[%clk 0:00:15]} 35... Qd7 {[%clk 0:00:57.3]} 36. c5 {[%clk
0:00:14.9]} 36... Bc6 {[%clk 0:00:57.5]} 37. Be1 {[%clk 0:00:13.2]} 37... Qe6
{[%clk 0:00:54.4]} 38. Rd2 {[%clk 0:00:12.8]} 38... Rxd2 {[%clk 0:00:54]} 39.
Qxd2 {[%clk 0:00:13.7]} 39... Qd5 {[%clk 0:00:54]} 40. Qb2 {[%clk 0:00:11.5]}
40... Qxc5 {[%clk 0:00:53.1]} 41. Qb1 {[%clk 0:00:11]} 41... Bd6 {[%clk
0:00:50.2]} 42. Qf5 {[%clk 0:00:10.8]} 42... Bxf3 {[%clk 0:00:43.8]} 43. gxf3
{[%clk 0:00:09.6]} 43... g6 {[%clk 0:00:41.4]} 44. Qd7 {[%clk 0:00:07.4]} 44...
Bf8 {[%clk 0:00:40.6]} 45. Kf1 {[%clk 0:00:02.3]} 45... Qc4+ {[%clk 0:00:40.2]}
46. Kg2 {[%clk 0:00:02.4]} 46... Qc5 {[%clk 0:00:33.4]} 47. Qd6 {[%clk
0:00:02.7]} 47... Bxd6 {[%clk 0:00:32.7]} 0-1